bitfinex/quotes_ETHUSD_20250529
["timestamp","ask_amount","ask_price","bid_price","bid_amount"]
[1748562334581,3.931,2632.9,2632.6,8.0]
[1748562334752,8.23408488,2632.9,2632.6,8.0]
[1748562334965,8.23408488,2632.9,2632.0,4.75420952]
[1748562334966,3.79832832,2632.8,2632.4,10.0]
[1748562335286,1.0562,2632.7,2632.4,10.0]
[1748562335502,1.0562,2632.7,2632.6,8.0]
[1748562335671,3.7987487,2632.5,2632.0,3.79938389]
[1748562335878,3.931,2632.4,2632.1,3.7991612]
[1748562336256,3.931,2632.4,2632.3,8.0]
[1748562336673,3.931,2632.4,2632.3,11.79895908]
[1748562337321,3.79722802,2633.5,2632.8,3.79815321]
[1748562337520,0.9846,2633.6,2632.8,3.79815321]
[1748562337521,9.7510375,2633.4,2632.9,3.79799411]
[1748562337727,3.79755022,2633.3,2632.8,3.79818348]
[1748562338079,9.75102154,2633.4,2632.9,3.79805479]
[1748562338515,3.79752712,2633.3,2632.8,3.79816038]
[1748562338722,9.75098564,2633.4,2632.9,3.79799972]
[1748562338879,3.79754903,2633.3,2632.8,13.79813186]
[1748562339115,5.9536,2633.4,2632.8,10.0]
[1748562339294,3.79772702,2633.2,2632.8,10.0]
[1748562339577,7.72889265,2633.1,2632.6,13.79845397]
[1748562339808,7.72889265,2633.1,2632.7,12.933635]
[1748562340011,3.931,2633.1,2632.7,3.7983752]
[1748562340931,3.931,2633.1,2632.7,3.79837163]
[1748562341111,3.931,2633.1,2632.8,10.0]
[1748562341427,3.931,2633.1,2632.7,3.79837163]
[1748562342085,3.931,2633.1,2632.8,10.0]
[1748562342448,5.82002852,2633.4,2632.8,16.93688231]
[1748562342449,2.0226,2633.4,2632.8,16.93688231]
[1748562342639,2.0226,2633.4,2633.0,12.47399202]
[1748562342640,3.931,2633.3,2633.0,12.47399202]
[1748562342787,3.931,2633.3,2633.0,3.79785202]
[1748562343521,3.931,2633.3,2632.9,13.79806259]
[1748562343688,7.72859245,2633.3,2632.8,11.79816469]
[1748562343886,4.78204055,2633.4,2632.9,3.79801703]
[1748562344119,3.93,2633.2,2632.9,13.79801703]
[1748562344331,3.93,2633.2,2633.0,3.890547]
[1748562345131,3.93,2633.2,2633.0,2.774547]
[1748562345425,3.93,2633.2,2632.9,10.0]
[1748562346327,3.93,2633.2,2633.0,10.0]
[1748562346646,3.93,2633.2,2632.9,10.0]
[1748562347092,7.72777867,2633.2,2633.0,2.380477]
[1748562347430,7.72777867,2633.2,2632.9,10.0]
[1748562347733,3.79758068,2633.3,2633.0,10.0]
[1748562347932,7.72767749,2633.2,2632.9,12.951677]
[1748562348137,3.93,2633.2,2633.0,3.146677]
[1748562348802,3.93,2633.2,2633.0,2.085677]
[1748562350713,3.93,2633.2,2633.0,3.144677]
[1748562351867,3.93,2633.1,2633.0,3.144677]
[1748562353761,3.79753844,2633.3,2633.0,3.144677]
[1748562353943,3.929,2633.2,2633.0,3.144677]
[1748562354249,7.72694702,2633.1,2633.0,10.0]
[1748562354453,3.929,2633.1,2632.9,10.0]
[1748562354813,3.929,2633.1,2632.8,8.0]
[1748562354814,3.929,2633.1,2633.0,10.0]
[1748562355469,3.99984721,2633.3,2632.9,10.0]
[1748562355656,3.929,2633.1,2633.0,7.695032]
[1748562355823,3.929,2633.1,2632.9,17.695132]
[1748562356016,3.929,2633.1,2633.0,7.695032]
[1748562356216,3.929,2633.1,2633.0,10.0]
[1748562356412,3.929,2633.1,2632.9,13.227477]
[1748562356651,3.929,2633.1,2633.0,3.004377]
[1748562357671,1.038,2633.3,2633.0,12.86006132]
[1748562357833,3.929,2633.2,2633.1,23.79766902]
[1748562358151,3.929,2633.2,2633.1,13.79766902]
[1748562358338,3.929,2633.2,2633.1,10.0]
[1748562358538,7.72666064,2633.2,2633.1,10.0]
[1748562358741,7.72666064,2633.2,2633.0,2.86006132]
[1748562358742,8.76161222,2633.2,2632.7,8.0]
[1748562358942,3.79793738,2633.1,2632.9,10.0]
[1748562359157,3.929,2633.0,2632.9,10.0]
[1748562359365,7.72700773,2633.0,2632.6,2.375036]
[1748562359679,7.72700773,2633.0,2632.6,3.221536]
[1748562359853,7.72700773,2633.0,2632.7,10.0]
[1748562360174,7.72700773,2633.0,2632.2,2.51186663]
[1748562360175,3.79859919,2632.6,2632.1,5.80139351]
[1748562360473,3.929,2632.5,2632.3,18.0]
[1748562360615,3.929,2632.5,2632.3,8.0]
[1748562360820,3.929,2632.5,2632.1,10.0]
[1748562361021,3.79893161,2632.4,2632.0,0.37993715]
[1748562361241,7.72807103,2632.3,2632.1,10.0]
[1748562361660,7.72801674,2632.3,2632.0,10.0]
[1748562361888,7.72801674,2632.3,2632.1,8.0]
[1748562361889,3.929,2632.3,2632.1,8.0]
[1748562362561,3.929,2632.3,2632.2,2.317456]
[1748562362759,3.929,2632.3,2632.1,8.0]
[1748562363282,3.929,2632.3,2631.9,11.79952088]
[1748562363473,3.929,2632.3,2632.1,8.0]
[1748562363674,3.929,2632.3,2631.9,13.61056171]
[1748562363970,3.929,2632.3,2632.2,2.192352]
[1748562364170,3.929,2632.3,2632.1,8.0]
[1748562364688,3.79843971,2632.7,2632.2,13.79901441]
[1748562364689,1.037,2632.7,2632.2,13.79901441]
[1748562364849,3.79892206,2632.4,2631.9,5.61061708]
[1748562365050,3.929,2632.3,2631.9,5.61061708]
[1748562365252,3.929,2632.3,2632.2,3.13711]
[1748562365478,3.929,2632.3,2632.2,11.13711]
[1748562366094,3.929,2632.3,2632.2,14.93621341]
[1748562366546,3.929,2632.3,2632.2,11.13711]
[1748562366993,1.0278,2632.5,2632.2,11.79909313]
[1748562367302,3.929,2632.3,2632.2,21.79909313]
[1748562367586,3.929,2632.3,2632.2,16.47061713]
[1748562369007,2.0648,2632.5,2632.4,3.79881476]
[1748562369008,1.037,2632.5,2632.4,3.79881476]
[1748562369163,3.929,2632.5,2632.4,12.809596]
[1748562369363,3.929,2632.5,2632.4,2.809596]
[1748562369790,3.929,2632.5,2632.4,6.60841076]
[1748562370099,3.929,2632.5,2632.4,2.809596]
[1748562370470,3.929,2632.5,2632.3,15.232595]
[1748562370661,3.929,2632.5,2632.4,5.232595]
[1748562370994,3.929,2632.5,2632.4,10.0]
[1748562371171,3.929,2632.5,2632.3,14.570595]
[1748562371369,3.929,2632.5,2632.4,10.0]
[1748562371557,3.929,2632.5,2632.4,3.048569]
[1748562374013,3.929,2632.5,2632.3,13.23641]
[1748562374215,3.929,2632.5,2632.4,3.048569]
[1748562374375,3.929,2632.5,2632.2,8.0]
[1748562374376,3.79895908,2632.3,2632.2,8.0]
[1748562374574,3.79895908,2632.3,2632.2,10.178905]
[1748562374575,3.929,2632.3,2632.2,10.178905]
[1748562374824,7.72795908,2632.3,2632.2,10.178905]
[1748562375322,7.72795908,2632.3,2631.9,8.0]
[1748562375323,3.79918521,2632.2,2631.9,8.0]
[1748562375501,3.929,2632.1,2631.9,8.0]
[1748562375709,3.929,2632.1,2631.8,14.181882]
[1748562375879,3.929,2632.1,2631.7,3.79982211]
[1748562376277,1.0103,2632.0,2631.7,2.703785]
[1748562376509,3.928,2631.9,2631.8,2.154507]
[1748562378955,3.928,2631.9,2631.8,10.0]
[1748562379241,0.9507,2631.6,2631.2,3.80051504]
[1748562379388,0.9507,2631.6,2630.6,13.80141412]
[1748562379389,3.928,2631.5,2630.6,13.80141412]
[1748562379735,3.928,2631.5,2631.2,3.80053787]
[1748562379878,3.928,2631.5,2631.2,13.80053787]
[1748562380083,3.928,2631.5,2631.2,10.0]
[1748562380650,7.72816101,2631.5,2631.1,18.0]
[1748562380859,7.7281835,2631.5,2631.1,8.0]
[1748562381203,3.928,2631.5,2631.1,11.80068362]
[1748562381402,3.928,2631.5,2631.2,3.80054356]
[1748562382418,3.928,2631.5,2631.1,11.80068766]
[1748562383024,7.72817181,2631.5,2631.1,8.0]
[1748562383227,7.72817181,2631.5,2631.1,11.80062828]
[1748562383228,3.928,2631.5,2631.1,11.80062828]
[1748562384309,3.928,2631.5,2631.1,8.0]
[1748562384857,4.83103375,2631.4,2631.1,8.0]
[1748562385644,1.0307,2631.4,2631.1,8.0]
[1748562386020,4.83100428,2631.4,2631.1,8.0]
[1748562386946,1.0307,2631.4,2631.1,8.0]
[1748562387319,4.83101997,2631.4,2631.1,8.0]
[1748562387927,3.929,2631.3,2631.1,8.0]
[1748562388142,1.0307,2631.4,2631.1,8.95892736]
[1748562388342,1.53083,2631.9,2631.6,3.7999696]
[1748562388343,1.0267,2631.7,2631.6,3.7999696]
[1748562388542,1.0267,2631.7,2631.3,6.31587298]
[1748562388543,3.929,2631.7,2631.3,6.31587298]
[1748562388743,3.929,2631.7,2631.4,10.0]
[1748562388928,3.929,2631.7,2631.3,9.22340209]
[1748562389119,3.929,2631.7,2631.4,3.80025113]
[1748562389317,2.0637,2631.9,2631.5,3.80004973]
[1748562389514,3.929,2631.8,2631.5,3.80004973]
[1748562389931,3.929,2631.8,2631.3,5.42304354]
[1748562390111,7.72873059,2631.8,2631.3,9.22337689]
[1748562390610,2.0637,2631.9,2631.5,11.80005802]
[1748562390811,3.929,2631.8,2631.4,13.10256892]
[1748562391051,3.929,2631.7,2631.5,3.80010931]
[1748562392254,3.929,2631.6,2631.5,3.80010931]
[1748562393244,3.929,2631.6,2630.9,2.51551443]
[1748562393444,3.80032094,2631.4,2631.2,2.0]
[1748562393675,3.80032094,2631.4,2630.7,3.80126962]
[1748562393676,7.72951311,2631.3,2630.7,3.80126962]
[1748562393816,7.72951311,2631.3,2630.9,8.0]
[1748562394015,3.929,2631.3,2630.8,12.547823]
[1748562394247,7.7294638,2631.3,2630.9,10.0]
[1748562394463,3.929,2631.3,2630.9,11.80096598]
[1748562394630,3.929,2631.3,2631.0,2.851373]
[1748562394954,7.72941503,2631.3,2631.0,2.851373]
[1748562395269,7.72941503,2631.3,2631.0,10.0]
[1748562395552,3.929,2631.3,2631.1,10.0]
[1748562395857,3.929,2631.3,2631.0,2.319459]
[1748562396625,3.929,2631.3,2631.1,10.0]
[1748562397520,3.929,2631.2,2631.1,10.0]
[1748562397936,3.929,2631.2,2630.9,3.80090578]
[1748562398545,3.929,2631.2,2631.1,10.0]
[1748562398735,3.929,2631.2,2631.0,3.8007873]
[1748562399152,3.929,2631.2,2630.9,3.80093936]
[1748562399653,3.929,2631.2,2631.0,3.80076783]
[1748562400355,3.929,2631.2,2631.1,10.0]
[1748562400555,3.929,2631.2,2631.0,10.0]
[1748562400720,3.929,2631.2,2630.9,11.80088102]
[1748562401055,3.929,2631.2,2631.0,4.009692]
[1748562401254,3.929,2631.2,2631.1,13.80069172]
[1748562401457,3.929,2631.2,2631.1,10.0]
[1748562402560,3.929,2631.2,2631.0,8.0]
[1748562403061,3.929,2631.2,2631.0,11.80078824]
[1748562403285,3.929,2631.2,2631.0,3.80078824]
[1748562403498,3.929,2631.2,2631.1,10.0]
[1748562403648,3.929,2631.2,2631.0,3.80078824]
[1748562403843,3.929,2631.2,2631.1,10.0]
[1748562404052,3.929,2631.2,2631.0,3.80078824]
[1748562404053,3.929,2631.2,2631.0,3.80076736]
[1748562404356,3.929,2631.2,2631.1,10.0]
[1748562404557,3.929,2631.2,2631.0,12.941321]
[1748562404776,3.929,2631.2,2631.1,10.0]
[1748562405080,3.929,2631.2,2631.0,15.618461]
[1748562405270,3.929,2631.2,2631.0,2.942321]
[1748562405578,3.929,2631.2,2631.0,3.80076997]
[1748562405788,3.929,2631.2,2631.1,10.0]
[1748562406011,3.928,2631.2,2631.1,13.80067041]
[1748562406301,0.9746,2631.5,2631.2,3.8005432]
[1748562406509,0.9894,2631.8,2631.4,3.80012605]
[1748562407348,3.928,2631.7,2631.5,3.80009522]
[1748562407668,3.928,2631.6,2631.5,3.80009522]
[1748562407869,3.928,2631.6,2631.4,11.8002557]
[1748562408080,0.9894,2631.8,2631.5,3.80009297]
[1748562408247,0.9894,2632.1,2631.5,3.80000701]
[1748562408444,1.036,2632.0,2631.7,3.79968569]
[1748562408770,1.036,2632.0,2631.7,13.79968569]
[1748562408971,3.928,2631.9,2631.7,13.79968569]
[1748562409148,3.928,2631.9,2631.7,3.79968569]
[1748562409485,0.9894,2632.1,2631.8,3.79965527]
[1748562409658,4.34871425,2632.5,2631.8,3.79965527]
[1748562409659,3.928,2632.0,2631.9,11.7994358]
[1748562409848,3.928,2632.0,2631.9,18.1945108]
[1748562410043,1.036,2632.3,2631.9,18.1945108]
[1748562410258,3.928,2632.2,2632.1,14.112593]
[1748562410456,3.928,2632.2,2632.1,3.196693]
[1748562410685,1.036,2632.3,2632.2,10.0]
[1748562410850,1.036,2632.3,2632.1,3.196693]
[1748562410851,4.964,2632.3,2632.1,15.296693]
[1748562411182,3.928,2632.2,2632.1,10.0]
[1748562411366,3.928,2632.2,2632.1,2.1001]
[1748562411567,4.83503584,2632.3,2632.1,2.1001]
[1748562411784,3.928,2632.2,2632.1,2.1001]
[1748562412950,3.928,2632.2,2631.1,3.19990199]
[1748562412951,0.9796,2632.1,2631.1,3.19990199]
[1748562413172,0.55,2632.0,2631.1,0.68438756]
[1748562413499,0.9796,2631.7,2631.1,3.80058897]
[1748562413656,3.927,2631.6,2631.3,8.0]
[1748562413990,3.927,2631.6,2631.5,10.0]
[1748562414379,3.927,2631.6,2631.4,13.064098]
[1748562414567,3.927,2631.6,2631.1,2.51551443]
[1748562414568,3.927,2631.6,2631.1,18.0]
[1748562414793,3.927,2631.6,2631.3,8.0]
[1748562415077,7.72699515,2631.6,2631.1,3.80064942]
[1748562415279,3.927,2631.6,2631.3,8.0]
[1748562415590,7.72697915,2631.6,2631.1,5.61234184]
[1748562415795,3.927,2631.6,2631.3,8.0]
[1748562416493,3.927,2631.6,2631.4,3.434571]
[1748562416703,3.927,2631.6,2631.5,10.0]
[1748562416997,7.72699323,2631.6,2631.2,8.0]
[1748562417354,3.927,2631.6,2631.2,11.80048921]
[1748562417902,3.800486,2631.3,2630.7,16.394705]
[1748562418052,3.800486,2631.3,2630.6,3.80129518]
[1748562418053,3.927,2631.2,2630.8,3.628522]
[1748562418262,3.927,2631.2,2631.0,8.0]
[1748562418457,3.927,2631.2,2630.8,3.80109933]
[1748562419104,3.927,2631.2,2630.9,8.0]
[1748562419407,3.927,2631.2,2630.4,3.80159335]
[1748562419408,4.80232164,2631.1,2630.4,3.80159335]
[1748562419606,4.80232164,2631.1,2630.4,3.80163223]
[1748562419607,3.80105753,2630.9,2630.4,3.80163223]
[1748562419767,0.55,2631.0,2630.5,8.0]
[1748562419768,3.927,2630.8,2630.5,8.0]
[1748562420100,3.927,2630.8,2630.6,6.64727463]
[1748562420300,3.927,2630.8,2630.7,13.80126962]
[1748562420503,3.927,2630.8,2630.6,7.3875659]
[1748562420725,3.927,2630.8,2630.7,13.80126962]
[1748562420889,3.927,2630.8,2630.7,3.80126962]
[1748562421086,2.0376,2631.1,2630.7,10.0]
[1748562421322,3.927,2631.0,2630.8,3.80107954]
[1748562422120,3.927,2631.0,2630.9,11.62634265]
[1748562422325,1.036,2631.1,2630.6,2.51551443]
[1748562422522,3.927,2631.0,2630.9,16.26011583]
[1748562422832,3.927,2631.0,2630.9,15.18101583]
[1748562422989,1.0456,2631.4,2630.9,11.3801]
[1748562423189,3.927,2631.3,2630.9,8.0]
[1748562423540,3.80090922,2631.0,2630.6,17.528513]
[1748562423834,4.9685,2631.3,2630.8,2.100375]
[1748562423835,3.927,2630.9,2630.8,2.100375]
[1748562424035,3.7999996,2631.6,2631.1,3.80067879]
[1748562424203,4.962,2631.5,2631.2,3.80051595]
[1748562424626,4.962,2631.5,2631.3,10.0]
[1748562424627,3.927,2631.4,2631.3,10.0]
[1748562424926,1.035,2631.5,2631.3,3.80040284]
[1748562425131,3.927,2631.4,2631.3,13.80040284]
[1748562425339,3.927,2631.4,2631.2,3.80048227]
[1748562425627,1.035,2631.5,2631.4,3.0349]
[1748562425832,1.035,2631.5,2631.4,2.1889]
[1748562425833,4.962,2631.5,2631.4,2.1889]
[1748562425997,4.962,2631.5,2631.4,10.0]
[1748562426195,4.962,2631.5,2631.4,2.909273]
[1748562426399,4.962,2631.5,2631.3,12.909373]
[1748562426629,1.035,2631.5,2631.4,2.884399]
[1748562426931,4.962,2631.5,2631.4,2.884399]
[1748562427829,4.962,2631.5,2631.4,12.884399]
[1748562427987,1.0415,2631.8,2631.5,13.8000482]
[1748562428212,3.927,2631.7,2631.6,13.79986163]
[1748562428412,3.927,2631.7,2631.6,3.79986163]
[1748562428858,3.927,2631.7,2631.6,13.79986163]
[1748562430267,0.55,2632.1,2631.7,3.79982383]
[1748562430552,1.035,2632.1,2631.7,3.79978058]
[1748562430735,3.926,2632.0,2631.7,3.79978058]
[1748562430938,3.926,2632.0,2631.7,3.7998252]
[1748562431138,1.035,2632.1,2631.7,3.7998252]
[1748562431331,1.035,2632.1,2631.7,9.75997649]
[1748562431332,3.926,2632.0,2631.7,9.75997649]
[1748562431528,3.926,2632.0,2631.7,13.55969302]
[1748562432917,3.926,2632.0,2631.8,3.79965151]
[1748562433119,1.035,2632.1,2631.9,3.79952864]
[1748562433350,3.926,2632.0,2631.9,3.79952864]
[1748562433739,3.926,2632.0,2631.7,9.75997649]
[1748562434056,1.035,2632.1,2631.9,3.79947189]
[1748562434353,3.926,2632.0,2631.8,5.40713985]
[1748562435059,3.926,2632.0,2631.9,2.23231]
[1748562435419,3.926,2632.0,2631.9,10.0]
[1748562436057,3.926,2632.0,2631.9,2.0751]
[1748562437665,3.926,2632.0,2631.8,10.0]
[1748562437876,7.72539209,2632.0,2631.8,10.0]
[1748562438164,3.926,2632.0,2631.9,2.09994]
[1748562438932,3.926,2632.0,2631.0,8.0]
[1748562439129,4.79938703,2631.8,2631.5,8.0]
[1748562439467,3.926,2631.7,2631.5,3.100527]
[1748562439641,3.926,2631.7,2631.4,11.800256]
[1748562439837,3.926,2631.7,2631.4,8.0]
[1748562440165,3.926,2631.7,2631.2,11.80050212]
[1748562440369,3.926,2631.7,2631.2,8.0]
[1748562440570,3.926,2631.7,2631.4,8.0]
[1748562440793,4.7985358,2631.7,2631.4,8.0]
[1748562440946,3.79998729,2631.6,2631.1,11.800647]
[1748562441285,4.7985358,2631.7,2631.3,17.26502173]
[1748562441483,3.926,2631.7,2631.3,3.80040273]
[1748562442301,3.926,2631.7,2631.5,2.766821]
[1748562442778,3.926,2631.7,2631.4,10.0]
[1748562442779,3.926,2631.7,2631.4,13.80020297]
[1748562442979,3.926,2631.7,2631.4,3.80020297]
[1748562443628,3.926,2631.7,2631.6,10.0]
[1748562443837,0.9996,2631.8,2631.5,18.10961556]
[1748562443992,3.925,2631.7,2631.6,10.0]
[1748562444418,3.925,2631.7,2631.5,14.310576]
[1748562444633,3.925,2631.7,2631.1,8.0]
[1748562444634,0.9884,2631.6,2631.0,8.0]
[1748562444822,0.9884,2631.6,2631.2,10.0]
[1748562445024,0.9884,2631.6,2631.0,1.15255519]
[1748562445246,0.9884,2631.6,2631.2,8.0]
[1748562445247,4.78846171,2631.6,2631.2,8.0]
[1748562445451,4.78846171,2631.6,2631.1,8.0]
[1748562445763,4.78846171,2631.6,2631.1,11.80066247]
[1748562446106,0.9884,2631.6,2631.1,11.80066247]
[1748562446606,0.9884,2631.6,2631.1,8.0]
[1748562446804,3.80046638,2631.3,2630.8,8.0]
[1748562447039,3.80046638,2631.3,2630.7,2.51551443]
[1748562447040,0.9464,2631.1,2630.7,11.8012173]
[1748562447247,0.9464,2631.1,2630.7,8.0]
[1748562447424,4.7471233,2631.1,2630.7,10.0]
[1748562447944,0.9464,2631.1,2630.7,3.80126635]
[1748562448153,0.9464,2631.1,2630.7,3.80124956]
[1748562448377,0.9464,2631.1,2630.8,10.0]
[1748562448726,0.9464,2631.1,2630.9,10.0]
[1748562449183,0.9464,2631.1,2630.9,5.883295]
[1748562449482,3.925,2631.2,2631.0,13.80083018]
[1748562449483,1.035,2631.2,2631.0,13.80083018]
[1748562449767,3.925,2631.1,2631.0,13.80083018]
[1748562449973,3.925,2631.1,2631.0,3.80083018]
[1748562450337,4.83526926,2631.4,2631.0,10.0]
[1748562450545,3.925,2631.3,2630.7,18.0]
[1748562450743,1.0109,2631.1,2630.8,10.0]
[1748562450979,0.9765,2631.3,2630.8,23.80105616]
[1748562451160,3.925,2631.2,2630.9,3.80098065]
[1748562451329,3.925,2631.2,2631.0,5.50898]
[1748562451535,3.925,2631.2,2631.1,3.72531]
[1748562452083,3.925,2631.2,2631.1,2.1]
[1748562452369,3.925,2631.2,2631.1,5.90059099]
[1748562452746,3.925,2631.2,2631.1,2.1]
[1748562453677,3.925,2631.2,2630.9,8.0]
[1748562453987,3.925,2631.2,2630.9,12.302753]
[1748562454278,3.925,2631.2,2631.0,2.099961]
[1748562454973,3.925,2631.2,2631.1,10.0]
[1748562455272,3.925,2631.2,2631.1,2.748961]
[1748562455474,1.035,2631.4,2631.2,10.0]
[1748562455640,3.925,2631.3,2631.1,3.594961]
[1748562455860,3.925,2631.3,2631.0,2.099961]
[1748562456188,7.72544501,2631.3,2631.1,2.099961]
[1748562456395,3.925,2631.3,2631.0,2.228699]
[1748562456561,3.925,2631.3,2631.1,2.109961]
[1748562456763,7.72540679,2631.3,2631.1,2.109961]
[1748562456972,3.925,2631.3,2631.0,2.238699]
[1748562457165,3.925,2631.3,2631.1,2.109961]
[1748562457977,3.925,2631.3,2631.0,10.0]
[1748562458365,3.925,2631.3,2631.1,10.0]
[1748562458591,3.925,2631.3,2631.1,2.713]
[1748562459212,3.925,2631.3,2631.0,10.0]
[1748562459992,3.80066127,2631.2,2630.9,10.0]
[1748562460191,3.925,2631.1,2630.8,8.0]
[1748562460361,4.9474,2631.1,2630.8,8.0]
[1748562460757,4.9474,2631.1,2630.5,2.51551443]
[1748562460957,3.80090118,2631.0,2630.7,8.0]
[1748562461295,3.80090118,2631.0,2630.6,8.0]
[1748562461606,3.80112513,2630.8,2630.4,8.0]
[1748562461759,3.80112513,2630.8,2630.3,2.51551443]
[1748562461760,3.925,2630.7,2630.3,3.8017522]
[1748562461954,3.925,2630.7,2630.3,13.80184497]
[1748562462257,3.925,2630.7,2630.6,8.0]
[1748562463294,3.925,2630.7,2630.2,8.0]
[1748562463499,5.79471484,2630.6,2630.0,3.80218994]
[1748562463700,1.9932,2630.6,2630.2,10.0]
[1748562464011,1.9932,2630.6,2630.2,2.67288]
[1748562464162,1.9932,2630.6,2629.9,2.51551443]
[1748562464358,1.9932,2630.6,2630.1,10.0]
[1748562464359,5.79468276,2630.6,2630.1,10.0]
[1748562464581,5.79468276,2630.6,2630.1,3.80212618]
[1748562465501,5.79468276,2630.6,2630.1,13.80211384]
[1748562465698,5.79468276,2630.6,2630.1,3.80211384]
[1748562465927,0.9401,2630.1,2629.3,0.66666667]
[1748562466076,0.9401,2629.7,2629.3,0.66666667]
[1748562466398,4.39927535,2629.6,2629.3,0.66666667]
[1748562466596,4.39927535,2629.6,2629.3,10.66666667]
[1748562466597,3.925,2629.6,2629.3,10.66666667]
[1748562466903,0.9401,2629.7,2629.3,10.66666667]
[1748562466904,3.925,2629.5,2629.4,11.20362605]
[1748562467130,3.925,2629.5,2629.3,4.46993907]
[1748562467131,3.925,2629.5,2629.3,0.66666667]
[1748562467273,3.925,2629.5,2629.4,3.803149]
[1748562467622,3.925,2629.5,2629.4,5.971431]
[1748562467769,3.925,2629.5,2629.4,3.803149]
[1748562468268,3.925,2629.5,2629.3,4.46993268]
[1748562468470,3.925,2629.5,2629.4,10.0]
[1748562468885,3.925,2629.5,2629.4,13.803149]
[1748562469304,3.925,2629.5,2629.3,4.46988701]
[1748562469607,3.925,2629.5,2629.4,10.0]
[1748562469898,3.925,2629.5,2629.3,4.46992378]
[1748562470203,3.925,2629.5,2629.4,13.803149]
[1748562470400,3.925,2629.5,2629.3,4.4698936]
[1748562470924,4.766849,2629.4,2629.3,0.66666667]
[1748562471075,5.316849,2629.4,2629.3,0.66666667]
[1748562471621,1.5137,2629.4,2629.3,0.66666667]
[1748562471921,5.316849,2629.4,2629.3,0.66666667]
[1748562472121,6.00484656,2629.4,2629.3,0.66666667]
[1748562473364,8.52036099,2629.4,2629.3,0.66666667]
[1748562474216,6.00484656,2629.4,2629.3,0.66666667]
[1748562474803,10.96484656,2629.4,2629.3,0.66666667]
[1748562477752,10.96484656,2629.4,2628.4,10.0]
[1748562477753,0.9197,2628.6,2628.4,10.0]
[1748562477931,3.80425742,2628.7,2628.3,10.0]
[1748562477932,3.927,2628.5,2628.3,10.0]
[1748562478147,3.927,2628.5,2628.4,7.05359295]
[1748562479030,3.927,2628.5,2628.4,2.599997]
[1748562479239,3.927,2628.5,2628.3,6.32020134]
[1748562479425,3.927,2628.5,2628.4,2.960524]
[1748562479623,3.927,2628.5,2628.3,2.51551443]
[1748562479828,3.927,2628.5,2628.4,10.0]
[1748562480024,3.927,2628.5,2628.0,4.23968384]
[1748562480025,5.53469756,2628.5,2628.1,5.16248]
[1748562480213,5.53469756,2628.5,2628.1,3.20848]
[1748562480412,5.53469756,2628.5,2628.0,13.80515197]
[1748562480654,9.33917267,2628.5,2628.1,12.064944]
[1748562480854,5.53469756,2628.5,2628.1,16.81499881]
[1748562481056,5.53469756,2628.5,2628.1,3.80502681]
[1748562483030,5.53469756,2628.5,2628.1,15.45463143]
[1748562483226,5.53469756,2628.5,2628.1,6.32046799]
[1748562483672,3.927,2628.4,2628.1,6.32046799]
[1748562483826,3.927,2628.4,2628.2,10.0]
[1748562484032,3.927,2628.4,2628.2,3.80486889]
[1748562484266,1.034,2628.5,2628.2,10.0]
[1748562484466,3.928,2628.3,2628.2,16.32039529]
[1748562484670,3.928,2628.3,2628.2,12.51551443]
[1748562484975,3.928,2628.3,2628.2,6.3203999]
[1748562485581,3.928,2628.3,2628.2,3.80488547]
[1748562485733,3.928,2628.3,2628.2,13.80488547]
[1748562486880,3.928,2628.3,2628.2,3.80488547]
[1748562487256,3.928,2628.3,2627.9,0.66666667]
[1748562487257,0.55,2628.2,2627.9,0.66666667]
[1748562487451,3.80516906,2628.1,2627.9,0.66666667]
[1748562487652,5.4642,2628.0,2627.9,0.66666667]
[1748562487947,5.4642,2628.0,2626.7,10.0]
[1748562488187,0.55,2627.5,2626.4,10.0]
[1748562488552,2.51551443,2626.2,2625.1,0.02]
[1748562488702,2.51551443,2626.2,2623.2,5.09192218]
[1748562488703,8.0,2626.1,2623.2,5.09192218]
[1748562488903,2.51551443,2624.2,2623.2,0.11752016]
[1748562489052,3.81199252,2623.3,2623.1,0.02]
[1748562489255,3.81330079,2622.4,2621.5,0.83522676]
[1748562489452,3.81313236,2622.6,2622.5,0.19843946]
[1748562489453,6.83957762,2622.6,2622.5,0.19843946]
[1748562489775,0.55,2622.2,2620.9,0.0088538]
[1748562489970,0.55,2622.0,2621.5,0.60240785]
[1748562490215,4.1,2622.1,2621.7,10.0]
[1748562490525,4.1,2622.1,2621.5,1.04413559]
[1748562490526,0.9848,2622.6,2621.6,5.98538162]
[1748562490815,0.55,2622.1,2621.6,5.234431]
[1748562490971,0.55,2622.1,2621.2,8.707523]
[1748562491175,0.9848,2622.6,2621.4,10.0]
[1748562491176,0.55,2622.5,2621.4,10.0]
[1748562491405,0.55,2622.5,2621.0,3.81525115]
[1748562491406,0.55,2622.5,2621.7,8.092721]
[1748562491573,0.55,2622.3,2621.6,7.270194]
[1748562491912,0.55,2622.3,2621.4,10.0]
[1748562491913,0.55,2622.1,2620.9,0.0088538]
[1748562492133,5.52,2622.0,2621.2,6.798396]
[1748562492335,1.228,2622.0,2621.3,3.814901]
[1748562492614,4.306,2621.9,2621.4,0.7319551]